bitfinex/quotes_ETHUSD_20240916
["timestamp","ask_amount","ask_price","bid_price","bid_amount"]
[1726466951739,1.06762726,2299.1,2298.9,8.69959]
[1726466951935,1.06762726,2299.1,2298.8,7.34995]
[1726466952137,0.1132,2298.8,2298.3,7.4]
[1726466952441,0.1132,2298.8,2298.1,7.64367232]
[1726466952442,1.02603475,2298.6,2298.1,6.73109]
[1726466952647,0.91283475,2298.4,2298.1,4.35129]
[1726466952957,0.91283475,2298.3,2298.1,4.35129]
[1726466953290,0.91283475,2298.3,2297.9,4.3517]
[1726466953291,0.95442726,2298.3,2297.9,4.3517]
[1726466953584,1.02603475,2298.2,2298.0,4.35155]
[1726466953940,0.1132,2298.2,2298.0,4.35155]
[1726466954178,0.04159251,2298.1,2298.0,4.35155]
[1726466956390,0.04159251,2298.1,2298.0,9.52909092]
[1726466956766,0.1132,2298.4,2298.1,4.35129]
[1726466957258,0.04159251,2298.3,2298.1,4.35129]
[1726466957793,0.04159251,2298.3,2298.2,8.70246]
[1726466958288,1.02603475,2298.7,2298.4,8.70149]
[1726466958668,1.02603475,2298.7,2298.4,4.35074]
[1726466960201,1.02603475,2298.7,2298.4,4.35073]
[1726466960500,0.1132,2298.7,2298.4,4.35073]
[1726466962081,0.1132,2298.7,2298.4,8.70149]
[1726466962270,0.36360969,2298.7,2298.4,8.70149]
[1726466962471,1.38521362,2298.7,2298.4,4.35073]
[1726466962711,0.47237887,2298.7,2298.4,4.35073]
[1726466963006,1.38521362,2298.7,2298.4,8.70148]
[1726466963728,1.27644444,2298.7,2298.4,8.70148]
[1726466963866,1.27644444,2298.7,2298.4,4.35073]
[1726466964073,1.27644444,2298.7,2298.4,8.70148]
[1726466964393,1.27644444,2298.7,2298.4,4.35073]
[1726466964578,0.04002427,2298.6,2298.4,4.35073]
[1726466965194,0.04002427,2298.6,2298.4,8.70149]
[1726466965766,0.04002427,2298.6,2298.4,4.35073]
[1726466965966,0.04002427,2298.6,2298.4,8.70148]
[1726466967899,0.04002427,2298.6,2298.4,4.35073]
[1726466968110,0.04002427,2298.6,2298.4,8.70149]
[1726466968276,0.95285902,2298.6,2298.4,8.70149]
[1726466968477,0.04002427,2298.6,2298.4,8.70149]
[1726466968972,0.95285902,2298.6,2298.4,8.70147]
[1726466969800,0.04002427,2298.6,2298.4,8.70147]
[1726466970580,0.95285902,2298.6,2298.4,8.70147]
[1726466970784,0.04002427,2298.6,2298.4,8.70147]
[1726466971084,0.95285902,2298.6,2298.4,8.70147]
[1726466971419,0.04002427,2298.6,2298.5,4.35066]
[1726466972412,0.04002427,2298.6,2298.5,8.70132]
[1726466974140,0.04002427,2298.6,2298.5,16.459342]
[1726466974357,0.91283475,2299.1,2299.0,4.34971]
[1726466974640,0.91283475,2299.2,2299.1,8.69904]
[1726466974941,0.95060155,2299.3,2299.2,4.34933]
[1726466976751,0.95060155,2299.3,2299.2,8.69866]
[1726466977242,0.0377668,2299.3,2299.2,8.69866]
[1726466979630,0.07808448,2299.3,2299.2,8.69866]
[1726466979946,0.07808448,2299.3,2299.2,11.06966]
[1726466980117,0.07808448,2299.3,2299.2,12.176626]
[1726466982457,0.07808448,2299.3,2299.2,16.525956]
[1726466983338,0.07808448,2299.3,2299.2,8.69866]
[1726466983657,0.07808448,2299.3,2299.1,4.3494]
[1726466984020,0.07808448,2299.3,2299.2,4.34933]
[1726466984261,0.07808448,2299.3,2299.1,4.3495]
[1726466986132,0.1132,2299.2,2299.0,4.34971]
[1726466986334,0.04184062,2299.1,2299.0,4.34971]
[1726466987236,0.04184062,2299.1,2299.0,8.69942]
[1726466987835,0.0377668,2299.3,2299.1,4.34941]
[1726466988723,0.0377668,2299.3,2299.2,4.34933]
[1726466990041,0.0377668,2299.3,2299.1,4.34942]
[1726466990360,0.0377668,2299.3,2299.1,8.69885]
[1726466990565,0.0377668,2299.3,2299.2,4.34933]
[1726466994662,0.07960742,2299.3,2299.2,4.34933]
[1726466997183,0.07960742,2299.3,2299.1,4.34948]
[1726466997384,0.07960742,2299.3,2299.1,8.69891]
[1726466998246,0.07960742,2299.3,2299.2,4.34933]
[1726466998486,0.07960742,2299.3,2299.1,8.69886]
[1726466998993,0.07960742,2299.3,2299.2,4.34933]
[1726467000561,0.07960742,2299.3,2299.1,8.69886]
[1726467000754,0.91283475,2299.6,2299.5,5.2725]
[1726467001104,0.0377668,2300.0,2299.5,5.2725]
[1726467001105,0.0377668,2300.0,2299.8,4.34818]
[1726467001393,0.0377668,2300.0,2299.9,4.34801]
[1726467002598,0.0377668,2300.0,2299.9,8.69602]
[1726467003558,0.0377668,2300.0,2299.9,4.34801]
[1726467004101,0.2305668,2300.0,2299.8,4.34809]
[1726467004778,0.2305668,2300.0,2299.5,6.62126]
[1726467004984,1.25211273,2300.0,2299.5,4.34876]
[1726467005157,2.52211912,2300.0,2299.4,8.69779]
[1726467005501,0.91283475,2299.9,2299.4,8.69779]
[1726467005798,0.91283475,2299.9,2299.5,4.34876]
[1726467005980,2.52211912,2300.0,2299.5,4.34876]
[1726467006371,0.91283475,2299.9,2299.5,4.34876]
[1726467006701,0.91283475,2299.9,2299.4,4.34886]
[1726467006702,0.10871378,2299.8,2299.4,4.34886]
[1726467007057,0.10871378,2299.8,2299.4,8.69773]
[1726467007268,0.10871378,2299.8,2299.4,4.34886]
[1726467007602,0.10871378,2299.8,2299.4,8.69772]
[1726467007758,0.10871378,2299.8,2299.4,8.69768]
[1726467008398,0.03910539,2299.7,2299.4,4.34882]
[1726467008601,0.03910539,2299.7,2299.3,2.3903]
[1726467008768,0.1928,2299.6,2299.2,4.34919]
[1726467008962,0.03910539,2299.5,2299.2,4.34919]
[1726467009804,0.03910539,2299.5,2299.2,8.69843]
[1726467010016,0.03910539,2299.5,2299.2,4.34919]
[1726467010305,0.03910539,2299.5,2299.2,8.69842]
[1726467010603,0.03910539,2299.5,2299.2,4.34919]
[1726467010785,0.03910539,2299.5,2299.2,8.69844]
[1726467010998,0.03910539,2299.5,2299.2,4.34919]
[1726467011191,0.03910539,2299.5,2299.2,8.69844]
[1726467011388,0.03910539,2299.5,2299.2,4.34919]
[1726467011590,0.03910539,2299.5,2299.2,8.69842]
[1726467011916,0.95194014,2299.5,2299.2,4.34919]
[1726467012140,1.8319317,2299.5,2299.2,4.34919]
[1726467012629,1.8319317,2299.5,2299.1,4.34941]
[1726467012983,0.91909695,2299.5,2299.1,4.34941]
[1726467013184,0.91909695,2299.5,2299.2,4.34931]
[1726467013387,0.91909695,2299.5,2298.9,2.3715]
[1726467013388,0.95194014,2299.5,2299.4,4.34896]
[1726467013589,0.03910539,2299.5,2299.4,4.34896]
[1726467013819,0.91283475,2299.7,2299.4,4.34896]
[1726467014094,0.03910539,2299.5,2299.4,4.34896]
[1726467014761,0.91283475,2299.7,2299.4,4.34896]
[1726467014926,0.03910539,2299.5,2299.4,4.34896]
[1726467015084,0.91283475,2299.7,2299.4,4.34896]
[1726467015424,0.91283475,2299.6,2299.4,4.34896]
[1726467015605,0.95194014,2299.6,2299.4,4.34896]
[1726467018335,0.91283475,2299.5,2299.4,4.34896]
[1726467018575,0.95213194,2299.5,2299.4,4.34896]
[1726467019002,0.95213194,2299.5,2299.3,4.34913]
[1726467019208,0.95213194,2299.5,2299.1,6.69137]
[1726467019209,1.10563475,2299.4,2299.2,4.34931]
[1726467019444,0.91283475,2299.3,2299.2,4.34931]
[1726467019751,0.95213194,2299.3,2299.2,4.34931]
[1726467025331,0.95213194,2299.3,2299.2,12.066608]
[1726467025533,0.03929719,2299.3,2299.2,11.19674]
[1726467029638,0.91283475,2299.5,2299.4,4.34896]
[1726467029843,1.36929294,2299.6,2299.5,11.18604]
[1726467030053,0.91306583,2299.6,2299.5,11.18604]
[1726467032140,0.91306583,2299.7,2299.6,8.69716]
[1726467032338,1.36929294,2299.8,2299.7,4.34839]
[1726467034082,1.36929294,2299.8,2299.6,4.34849]
[1726467034240,0.91296204,2299.7,2299.6,4.34847]
[1726467034440,1.36929294,2299.7,2299.6,4.34847]
[1726467036161,0.1928,2299.6,2299.3,4.34905]
[1726467036371,1.369572,2299.5,2299.3,4.34905]
[1726467036575,1.369572,2299.4,2299.3,4.34905]
[1726467037330,1.369572,2299.4,2299.2,4.34923]
[1726467037586,0.91316731,2299.3,2299.2,4.34923]
[1726467039690,0.95319777,2299.3,2299.2,4.34923]
[1726467040756,0.04003046,2299.3,2299.2,4.34923]
[1726467041152,0.95319777,2299.3,2299.2,4.34923]
[1726467047588,0.04003046,2299.3,2299.2,15.52089874]
[1726467047902,0.04003046,2299.3,2299.2,22.87022874]
[1726467048267,0.91316731,2299.6,2299.3,3.0]
[1726467048594,0.91316731,2299.6,2299.5,10.94974]
[1726467049601,0.91316731,2299.7,2299.6,11.01936]
[1726467049809,1.369572,2299.8,2299.6,11.01936]
[1726467049810,0.91316731,2299.8,2299.7,8.69678]
[1726467049963,0.91316731,2299.8,2299.7,10.233593]
[1726467050272,0.91316731,2299.8,2299.7,15.550093]
[1726467050460,0.91316731,2299.9,2299.8,8.6964]
[1726467050660,0.91316731,2299.9,2299.8,10.6862643]
[1726467052498,0.95093411,2300.0,2299.9,8.69602]
[1726467054748,0.07756036,2300.0,2299.9,8.69602]
[1726467054903,0.07756036,2300.0,2299.9,9.16211616]
[1726467055411,0.07756036,2300.0,2299.9,11.62791616]
[1726467056326,0.07756036,2300.0,2299.9,14.62791616]
[1726467061157,0.07756036,2300.0,2299.9,18.97592616]
[1726467061564,0.07756036,2300.0,2299.9,14.62791616]
[1726467062268,0.07756036,2300.0,2299.9,4.34801]
[1726467063980,0.07756036,2300.0,2299.9,8.69602]
[1726467064650,0.07756036,2300.0,2299.9,4.34801]
[1726467065465,0.07756036,2300.0,2299.9,8.69602]
[1726467065669,0.07756036,2300.0,2299.9,4.34801]
[1726467065874,0.07756036,2300.0,2299.9,8.69602]
[1726467066033,0.07756036,2300.0,2299.9,4.34801]
[1726467066693,0.07756036,2300.0,2299.9,8.69602]
[1726467067229,0.07756036,2300.0,2299.9,4.34801]
[1726467067471,0.07756036,2300.0,2299.9,8.69602]
[1726467071629,0.07756036,2300.0,2299.9,14.28507997]
[1726467071934,0.0377668,2300.0,2299.9,14.28507997]
[1726467072638,0.0377668,2300.0,2299.9,21.63308997]
[1726467073332,0.0377668,2300.0,2299.9,25.98109997]
[1726467073503,0.0377668,2300.0,2299.9,40.43274597]
[1726467073705,0.0377668,2300.0,2299.9,36.17910897]
[1726467074034,0.0377668,2300.0,2299.9,31.95932349]
[1726467074233,0.0377668,2300.0,2299.9,30.45270549]
[1726467074527,0.0377668,2300.0,2299.9,28.27081349]
[1726467074702,0.0377668,2300.0,2299.9,23.92280349]
[1726467074891,0.0377668,2300.0,2299.9,28.27081349]
[1726467075087,0.0377668,2300.0,2299.9,23.92280349]
[1726467075301,0.0377668,2300.0,2299.9,28.27081349]
[1726467075836,0.0377668,2300.0,2299.9,23.92280349]
[1726467076432,0.0377668,2300.0,2299.9,28.27081349]
[1726467076935,0.0377668,2300.0,2299.9,23.92280349]
[1726467078742,0.0377668,2300.0,2299.9,19.66905545]
[1726467078959,0.0377668,2300.0,2299.9,23.92280349]
[1726467079745,0.0377668,2300.0,2299.9,28.82081349]
[1726467081353,0.0377668,2300.0,2299.9,23.92280349]
[1726467081712,0.0377668,2300.7,2300.6,8.69338]
[1726467081908,0.0377668,2300.7,2300.6,17.29381804]
[1726467082150,0.07942093,2300.7,2300.6,20.29381804]
[1726467082323,0.0377668,2300.7,2300.6,11.69338]
[1726467082610,0.0377668,2300.7,2300.6,7.34669]
[1726467082741,0.08022124,2300.7,2300.6,7.34669]
[1726467082925,0.0377668,2300.7,2300.6,7.34669]
[1726467083133,0.08022124,2300.7,2300.6,4.34669]
[1726467085523,0.08022124,2300.7,2300.6,8.69338]
[1726467086057,0.0377668,2300.7,2300.6,14.24184084]
[1726467086649,0.0377668,2300.7,2300.6,9.9880928]
[1726467089769,0.0377668,2300.7,2300.6,18.58853084]
[1726467090177,0.0377668,2300.7,2300.6,24.05813084]
[1726467093963,0.0377668,2300.7,2300.6,21.76686491]
[1726467096356,0.005,2301.1,2301.0,8.69186]
[1726467096558,0.005,2301.1,2301.0,29.59733211]
[1726467096983,0.005,2301.2,2301.1,23.29986]
[1726467097147,0.0377668,2301.4,2301.3,16.03611]
[1726467097356,3.42884416,2302.4,2301.3,16.03611]
[1726467097357,2.31219918,2302.7,2302.5,4.34306]
[1726467097556,2.31219918,2302.7,2302.0,4.34397]
[1726467097557,0.2356,2302.6,2302.0,1.96248211]
[1726467097753,0.27633742,2302.6,2302.0,1.96248211]
[1726467097982,0.27633742,2302.6,2302.4,4.34317]
[1726467098196,0.27633742,2302.6,2302.2,1.96248211]
[1726467098356,5.08503184,2302.6,2302.1,4.34371]
[1726467098758,5.19362129,2302.6,2302.1,4.34371]
[1726467099298,5.19362129,2302.6,2302.2,10.64962211]
[1726467099299,0.74202184,2302.6,2302.2,10.64962211]
[1726467099593,0.27633742,2302.6,2302.3,4.34336]
[1726467099894,0.27633742,2302.6,2302.2,4.34366]
[1726467100106,0.27633742,2302.6,2302.1,4.34373]
[1726467100263,0.75288999,2302.6,2302.1,4.34373]
[1726467101487,5.09589999,2302.6,2302.1,4.34373]
[1726467101798,5.20449236,2302.6,2302.1,4.34373]
[1726467102495,0.86148236,2302.6,2302.1,4.34373]
[1726467102802,0.52420792,2302.5,2302.1,4.34373]
[1726467103311,0.04073742,2302.4,2302.0,4.34391]
[1726467103960,0.04073742,2302.4,2301.8,4.34435]
[1726467103961,0.2356,2302.3,2301.8,4.34435]
[1726467104604,0.04073742,2302.2,2302.1,4.34385]
[1726467105096,0.04073742,2302.2,2302.1,4.34373]
[1726467105296,0.04073742,2302.2,2301.9,4.34409]
[1726467105297,0.2356,2302.3,2302.0,4.34404]
[1726467105595,0.04073742,2302.2,2302.0,4.34404]
[1726467105783,0.04073742,2302.2,2301.9,4.34409]
[1726467105988,0.2356,2302.3,2302.0,4.34394]
[1726467106400,0.04073742,2302.2,2302.0,4.34394]
[1726467106699,4.343,2302.6,2302.0,4.34394]
[1726467106903,4.343,2302.6,2302.1,4.34385]
[1726467107063,4.57824,2302.8,2302.2,4.34363]
[1726467107064,4.3804968,2302.7,2302.2,4.34363]
[1726467107760,4.34293,2302.6,2302.1,8.68759]
[1726467107971,5.23880368,2302.6,2302.1,8.68759]
[1726467108171,0.2356,2302.5,2302.1,4.34374]
[1726467108600,0.2356,2302.5,2301.9,4.34412]
[1726467108601,4.57871,2302.5,2301.9,4.34408]
[1726467108804,0.78681705,2302.5,2302.0,4.34392]
[1726467109103,0.78681705,2302.5,2302.2,4.34354]
[1726467109404,0.2356,2302.5,2302.1,8.68759]
[1726467109608,0.2356,2302.5,2302.1,4.34374]
[1726467109965,0.2356,2302.5,2302.1,8.6875]
[1726467110160,0.69722968,2302.5,2302.1,8.6875]
[1726467110565,0.69722968,2302.5,2302.1,8.68745]
[1726467110862,0.69722968,2302.5,2302.1,8.68747]
[1726467111066,0.69722968,2302.5,2302.1,4.34371]
[1726467111260,0.2356,2302.5,2302.2,4.34365]
[1726467112180,0.2356,2302.5,2302.1,4.34371]
[1726467112372,0.2356,2302.5,2302.1,8.68748]
[1726467112567,0.69722768,2302.5,2302.1,8.68748]
[1726467113446,0.69722768,2302.5,2302.2,4.34364]
[1726467113620,0.2356,2302.5,2302.2,4.34364]
[1726467114730,0.04190965,2302.4,2302.2,4.34364]
[1726467115908,0.04190965,2302.4,2302.3,4.34348]
[1726467116817,0.04190965,2302.4,2302.2,4.34364]
[1726467117343,0.04190965,2302.4,2302.3,4.34348]
[1726467117548,0.04190965,2302.4,2302.2,4.34354]
[1726467117742,0.04190965,2302.4,2302.2,8.68707]
[1726467118246,0.04190965,2302.4,2302.2,4.34353]
[1726467118748,0.04190965,2302.4,2301.8,3.0]
[1726467118962,0.04190965,2302.4,2302.2,4.34364]
[1726467120316,0.04190965,2302.4,2302.2,4.34357]
[1726467121513,0.04190965,2302.4,2302.2,8.68714]
[1726467121814,0.04190965,2302.4,2302.0,4.34393]
[1726467122021,0.04190965,2302.4,2301.7,7.4]
[1726467122022,4.72948965,2302.4,2301.7,7.4]
[1726467122257,0.49650896,2302.3,2302.0,4.34396]
[1726467122912,0.2356,2302.1,2301.7,11.74449]
[1726467123107,0.2356,2302.1,2301.8,4.34441]
[1726467123713,0.04190965,2302.0,2301.8,4.34441]
[1726467125051,0.04190965,2302.0,2301.7,4.34449]
[1726467125396,0.04190965,2302.0,2301.8,4.34434]
[1726467126278,0.04190965,2302.0,2301.7,4.3446]
[1726467126478,0.50526776,2302.0,2301.7,4.3446]
[1726467126679,0.50526776,2302.0,2301.7,8.6892]
[1726467126892,0.50526776,2302.0,2301.7,4.3446]
[1726467127188,0.50526776,2302.0,2301.7,4.34445]
[1726467129793,0.04190965,2302.0,2301.8,4.3444]
[1726467130087,0.04190965,2302.0,2301.8,4.34432]
[1726467132822,0.04190965,2302.0,2301.7,4.34459]
[1726467135516,0.04190965,2302.0,2301.6,4.34476]
[1726467135517,0.04190965,2302.0,2301.8,4.34442]
[1726467136680,0.04190965,2302.0,2301.7,4.3446]
[1726467137185,0.2356,2301.9,2301.6,4.34465]
[1726467137385,0.27766773,2301.9,2301.7,4.34449]
[1726467138711,0.27766773,2301.9,2301.8,4.34442]
[1726467140498,0.04206773,2301.9,2301.8,4.34442]
[1726467141907,0.94677565,2301.9,2301.8,4.34442]
[1726467143232,1.41163973,2301.9,2301.8,4.34442]
[1726467143741,1.41163973,2301.9,2301.7,8.6892]
[1726467143926,1.41163973,2301.9,2301.8,4.34442]
[1726467153045,1.41163973,2301.9,2301.7,4.3446]
[1726467153207,0.91179382,2301.8,2301.7,8.68909]
[1726467153406,0.95394045,2301.8,2301.7,8.68909]
[1726467162369,1.41171863,2301.8,2301.7,8.68909]
[1726467162982,0.04214663,2301.8,2301.7,8.68909]
[1726467163183,1.41171863,2301.8,2301.7,8.68909]
[1726467165491,1.41221937,2301.8,2301.7,8.68909]
[1726467165692,1.41222924,2301.8,2301.7,8.68909]
[1726467165894,1.87081879,2301.8,2301.7,8.68909]
[1726467167657,0.2356,2301.7,2301.4,6.83166]
[1726467167984,0.2356,2301.7,2301.2,4.34543]
[1726467167985,2.28428861,2301.5,2301.2,4.34543]
[1726467168307,1.37082415,2301.3,2301.2,4.34543]
[1726467168797,0.04224806,2301.3,2301.1,4.34564]
[1726467169003,1.37059564,2301.2,2301.1,4.34564]
[1726467169189,1.37059564,2301.2,2301.1,8.69138]
[1726467169378,0.95555952,2301.2,2301.1,8.69138]
[1726467169691,1.4128437,2301.2,2301.1,8.69138]
[1726467170157,0.95525343,2301.2,2301.1,4.34564]
[1726467170355,0.2356,2301.1,2300.8,4.3462]
[1726467170596,1.36964239,2300.9,2300.8,4.3462]
[1726467171101,1.41125918,2300.9,2300.8,4.3462]
[1726467171301,0.9541177,2300.9,2300.7,8.69284]
[1726467171459,0.9541177,2300.9,2300.7,8.69275]
[1726467171859,0.91250091,2300.8,2300.7,4.34635]
[1726467172299,0.04161679,2300.8,2300.7,4.34635]
[1726467173019,0.91250091,2300.9,2300.8,4.34631]
[1726467173220,0.91250091,2301.0,2300.8,4.34631]
[1726467173419,0.91250091,2301.0,2300.6,4.34653]
[1726467173578,0.91250091,2300.9,2300.7,4.34641]
[1726467173782,0.91250091,2301.0,2300.7,4.34641]
[1726467174597,0.04133487,2300.9,2300.7,4.34641]
[1726467176495,1.14810091,2301.1,2300.7,4.34641]
[1726467176743,0.04133487,2300.8,2300.7,4.34641]
[1726467176949,1.14810091,2301.1,2300.7,4.34641]
[1726467177123,0.04133487,2300.8,2300.7,4.34641]
[1726467177317,1.14810091,2301.1,2300.7,4.34641]
[1726467177559,0.04133487,2300.8,2300.7,4.34641]
[1726467177709,1.14810091,2301.1,2300.8,4.34625]
[1726467178639,0.2356,2301.1,2300.8,4.34625]
[1726467179040,1.14810091,2301.1,2300.8,4.34625]
[1726467179220,0.2356,2301.1,2300.8,4.34625]
[1726467181213,0.2356,2301.1,2300.9,4.34611]
[1726467181414,1.14810091,2301.3,2301.1,4.34564]
[1726467181652,0.91250091,2301.4,2301.2,4.34555]
[1726467181820,0.91250091,2301.4,2301.1,4.34563]
[1726467182255,0.91250091,2301.4,2301.1,8.69125]
[1726467182437,0.91250091,2301.4,2301.1,4.34562]
[1726467183542,0.91250091,2301.4,2301.1,8.69127]
[1726467183858,0.91250091,2301.4,2301.1,4.34562]
[1726467184058,0.91250091,2301.4,2301.1,8.69127]
[1726467184420,0.91250091,2301.4,2301.1,4.34562]
[1726467184720,0.91250091,2301.4,2301.1,8.69128]
[1726467184919,0.91250091,2301.4,2301.1,4.34562]
[1726467186523,0.91250091,2301.4,2301.1,8.69128]
[1726467187467,0.91250091,2301.4,2301.1,4.34562]
[1726467188093,1.14810091,2301.5,2301.2,4.34543]
[1726467188796,2.19704505,2301.3,2300.8,4.34627]
[1726467189009,1.14579793,2301.3,2301.1,4.34563]
[1726467189207,1.82776554,2301.5,2301.2,4.34555]
[1726467189208,2.51544032,2301.5,2301.2,4.34555]
[1726467189501,0.2356,2301.5,2301.3,4.34526]
[1726467189683,0.04066979,2301.4,2301.3,4.34526]
[1726467191390,1.14579793,2301.6,2301.3,4.34526]
[1726467191568,0.04066979,2301.4,2301.3,4.34526]
[1726467191781,1.14579793,2301.6,2301.3,4.34526]
[1726467191988,0.04066979,2301.4,2301.3,4.34526]
[1726467192175,1.14579793,2301.6,2301.3,4.34526]
[1726467192377,0.04066979,2301.5,2301.4,4.34518]
[1726467195221,0.04066979,2301.5,2301.4,16.239494]
[1726467195376,0.04066979,2301.5,2301.4,11.02526]
[1726467195571,1.14579793,2301.9,2301.5,4.34497]
[1726467195870,4.10299729,2302.1,2301.5,4.34497]
[1726467195871,0.91014178,2302.1,2302.0,4.34404]
[1726467196102,0.91014178,2302.1,2302.0,8.68808]
[1726467196379,1.14574178,2302.2,2302.0,8.68808]
[1726467196569,1.14574178,2302.2,2302.1,4.34385]
[1726467198116,0.2356,2302.2,2302.1,4.34385]
[1726467198319,1.14556235,2302.2,2302.1,4.34385]
[1726467201572,1.14556235,2302.2,2302.0,4.34404]
[1726467201573,1.14556235,2302.2,2302.0,8.688]
[1726467201786,3.1070074,2302.2,2302.0,4.34396]
[1726467201985,3.1070074,2302.2,2302.0,4.34392]
[1726467202277,3.1070074,2302.2,2302.0,8.68788]
[1726467202489,3.1070074,2302.2,2302.0,4.34392]
[1726467203392,0.2356,2302.0,2301.8,4.34433]
[1726467203596,1.14556235,2302.2,2302.0,4.34394]
[1726467203918,1.14556235,2302.2,2302.0,9.798065]
[1726467204093,1.14556235,2302.2,2302.1,4.34385]
[1726467204733,1.18705507,2302.2,2302.1,4.34385]
[1726467204902,0.95145507,2302.2,2302.1,4.34385]
[1726467205107,0.95145507,2302.2,2302.0,4.34393]
[1726467205332,0.95145507,2302.2,2302.0,8.68787]
[1726467205541,0.95145507,2302.2,2302.0,4.34393]
[1726467205900,0.04149272,2302.2,2302.0,4.34393]
[1726467206107,0.04149272,2302.2,2302.0,8.68786]
[1726467206312,2.30564647,2302.4,2302.0,8.68786]
[1726467206536,0.04149272,2302.1,2302.0,8.68786]
[1726467206704,2.30564647,2302.4,2302.0,8.68786]
[1726467206901,0.04149272,2302.1,2302.0,4.34393]
[1726467207236,0.34420142,2302.4,2302.1,4.34383]
[1726467207435,0.2356,2302.4,2302.1,4.34383]
[1726467207949,0.10859903,2302.5,2302.1,4.34376]
[1726467208292,0.2356,2302.6,2302.5,4.3431]
[1726467208601,0.0377668,2302.7,2302.6,8.68582]
[1726467211121,0.0377668,2302.7,2302.6,15.52673]
[1726467211463,0.0377668,2302.7,2302.6,17.27554751]
[1726467212145,0.0377668,2302.7,2302.6,12.93263751]
[1726467217630,0.0377668,2302.7,2302.6,10.43463751]
[1726467217824,0.0377668,2302.7,2302.6,8.68582]
[1726467220599,0.2733668,2302.7,2302.4,4.34315]
[1726467220807,0.2733668,2302.7,2302.5,4.34305]
[1726467220983,0.31757506,2302.7,2302.5,4.34305]
[1726467222324,0.31757506,2302.7,2302.4,4.34315]
[1726467222630,0.08197506,2302.7,2302.6,4.34291]
[1726467224130,0.08197506,2302.7,2302.5,4.34302]
[1726467225406,0.08197506,2302.7,2302.6,4.34291]
[1726467225702,0.08197506,2302.7,2302.6,11.05202]
[1726467225915,0.0377668,2302.7,2302.6,11.05202]
[1726467226410,0.08197506,2302.7,2302.6,6.70911]
[1726467226606,0.08197506,2302.7,2302.6,11.722931]
[1726467226818,0.0377668,2302.7,2302.6,11.722931]
[1726467231260,0.08191876,2302.7,2302.6,11.722931]
[1726467232241,0.0377668,2302.7,2302.6,11.722931]
[1726467232437,0.08191876,2302.7,2302.6,11.722931]
[1726467232623,0.0377668,2302.7,2302.6,11.722931]
[1726467232823,0.08191876,2302.7,2302.6,11.722931]
[1726467233065,0.0377668,2302.7,2302.6,11.722931]
[1726467234261,0.08188498,2302.7,2302.6,11.722931]
[1726467236476,0.08188498,2302.7,2302.6,8.68582]
[1726467240412,0.08188498,2302.7,2302.6,4.34291]
[1726467240906,0.08188498,2302.7,2302.5,4.34308]
[1726467241090,0.2356,2302.6,2302.5,4.34308]
[1726467241401,0.27981955,2302.6,2302.5,4.34308]
[1726467241611,0.04421955,2302.6,2302.5,4.34308]
[1726467242606,0.04421955,2302.6,2302.5,8.68618]
[1726467242908,0.04421955,2302.6,2302.5,4.34308]
[1726467246425,0.95360032,2302.6,2302.5,4.34308]
[1726467246622,0.04421955,2302.6,2302.5,4.34308]
[1726467246823,0.15279504,2302.6,2302.4,4.34312]
[1726467247128,0.91171541,2302.5,2302.4,4.34312]
[1726467247296,1.3675696,2302.5,2302.4,4.34312]
[1726467247498,1.41169905,2302.5,2302.4,4.34312]
[1726467248338,1.862891,2302.5,2302.4,4.34312]
[1726467249556,0.04412945,2302.5,2302.4,12.241949]
[1726467249844,0.04412945,2302.5,2302.4,16.585239]
[1726467250050,0.91247927,2302.6,2302.5,8.6862]
[1726467250419,1.36891875,2302.6,2302.5,8.6862]
[1726467250619,0.91254728,2302.6,2302.5,8.6862]
[1726467250812,1.40668555,2302.7,2302.6,4.34291]
[1726467253152,1.40668555,2302.7,2302.6,8.68582]
[1726467253655,1.85652835,2302.7,2302.6,8.68582]
[1726467253951,1.4066394,2302.7,2302.6,8.68582]
[1726467256938,1.4066394,2302.7,2302.6,4.34291]
[1726467258556,2.43077002,2302.7,2302.5,4.343]
[1726467258850,1.36905715,2302.6,2302.5,4.343]
[1726467259408,1.36905715,2302.6,2302.5,8.6861]
[1726467259821,1.36905715,2302.6,2302.5,21.74793099]
[1726467260028,0.95044539,2302.7,2302.6,8.68582]
[1726467260244,0.9941267,2302.7,2302.6,8.68582]
[1726467260454,0.08144811,2302.7,2302.6,8.68582]
[1726467260960,0.08144811,2302.7,2302.6,10.6646177]
[1726467261858,0.0377668,2302.7,2302.6,10.6646177]
[1726467262760,0.0377668,2302.7,2302.6,17.3685277]
[1726467271259,0.0377668,2302.7,2302.6,21.7114377]
[1726467271427,0.0377668,2302.7,2302.6,23.67101169]
[1726467271775,0.0377668,2302.7,2302.6,24.66741723]
[1726467271979,0.0377668,2302.7,2302.6,25.28931842]
[1726467272133,0.0377668,2302.7,2302.6,24.66739722]
[1726467272449,0.0377668,2302.7,2302.6,35.85076527]
[1726467272627,0.0377668,2302.7,2302.6,34.28717927]
[1726467273144,0.91267859,2303.3,2302.6,29.94426927]
[1726467273342,4.33972,2304.3,2302.6,29.94426927]
[1726467273343,0.9100801,2305.0,2304.7,19.6201]
[1726467273542,0.0377668,2305.5,2304.1,0.1]
[1726467273543,0.0377668,2305.5,2305.4,8.67528]
[1726467274166,0.0377668,2305.5,2304.9,2.2643]
[1726467274379,0.0377668,2305.5,2305.2,4.33788]
[1726467274603,0.0377668,2305.5,2305.3,4.42350427]
[1726467274796,0.015,2305.7,2305.2,4.33798]
[1726467274797,0.0393792,2305.6,2305.2,4.33798]
[1726467275101,0.0393792,2305.6,2305.0,4.33827]
[1726467275305,0.0393792,2305.6,2305.1,4.33808]
[1726467275464,0.0393792,2305.6,2305.0,4.33826]
[1726467275798,0.0393792,2305.6,2305.3,1.95957399]
[1726467275953,0.0393792,2305.6,2305.5,6.60405]
[1726467276156,0.015,2305.7,2305.5,6.68973197]
[1726467276363,0.015,2305.7,2305.5,3.87839087]
[1726467276797,0.015,2305.7,2305.5,8.21581087]
[1726467277012,0.015,2305.7,2305.3,4.33766]
[1726467277651,0.015,2305.7,2305.2,2.2666]
[1726467277846,0.015,2305.7,2304.9,4.33849]
[1726467277847,0.015,2305.7,2304.9,2.3935]
[1726467278051,0.35397568,2305.7,2304.9,6.73204]
[1726467278353,0.35397568,2305.7,2304.9,2.3935]